[Event "FIDE WCCC Girls-10 2024"]
[Site "Montesilvano"]
[Date "2024.11.18"]
[Round "3.7"]
[White "Filippova, Milana"]
[Black "Wang, Mi Ya Mia"]
[Result "1-0"]
[ECO "B31"]
[WhiteElo "1687"]
[BlackElo "1552"]
[PlyCount "123"]
[EventDate "2024.11.18"]
[EventType "swiss"]
[EventCountry "ITA"]
[TimeControl "5400+30"]

1. e4 {[%emt 0:00:01]} c5 {[%emt 0:00:05]} 2. Nf3 {[%emt 0:00:04]} Nc6 {[%emt 0:00:05]} 3. Bb5 {[%emt 0:00:04]} g6 {[%emt 0:00:16]} 4. Bxc6 {[%emt 0:00:43]} dxc6 {[%emt 0:00:11]} 5. d3 {[%emt 0:00:12]} Bg7 {[%emt 0:00:18]} 6. a4 {[%emt 0:00:38]} e5 {[%emt 0:00:27]} 7. a5 {[%emt 0:00:30]} Qc7 {[%emt 0:00:59]} 8. Nbd2 {[%emt 0:01:14]} Nf6 {[%emt 0:00:37]} 9. Nc4 {[%emt 0:01:50]} Nd7 {[%emt 0:00:27]} 10. O-O {[%emt 0:00:32]} O-O {[%emt 0:00:21]} 11. Be3 {[%emt 0:01:41]} Re8 {[%emt 0:01:13]} 12. Qc1 {[%emt 0:01:09]} Qb8 {[%emt 0:02:17]} 13. Bh6 {[%emt 0:00:46]} Nf8 {[%emt 0:01:21]} 14. Bxg7 {[%emt 0:05:52]} Kxg7 {[%emt 0:00:10]} 15. Qe3 {[%emt 0:00:10]} Nd7 {[%emt 0:00:50]} 16. Nfd2 {[%emt 0:00:34]} b6 {[%emt 0:00:57]} 17. axb6 {[%emt 0:02:00]} axb6 {[%emt 0:00:08]} 18. Rxa8 {[%emt 0:02:19]} Qxa8 {[%emt 0:00:14]} 19. f4 {[%emt 0:00:58]} Qb8 {[%emt 0:01:45]} 20. fxe5 {[%emt 0:01:13]} Nxe5 {[%emt 0:00:14]} 21. Qf4 {[%emt 0:00:33]} Qc7 {[%emt 0:07:31]} 22. Nxe5 {[%emt 0:05:27]} Rxe5 {[%emt 0:00:24]} 23. Nc4 {[%emt 0:00:11]} Re7 {[%emt 0:00:24]} 24. Qxc7 {[%emt 0:03:29]} Rxc7 {[%emt 0:00:17]} 25. Nxb6 {[%emt 0:00:07]} Be6 {[%emt 0:01:12]} 26. b3 {[%emt 0:08:36]} Ra7 {[%emt 0:03:15]} 27. Na4 {[%emt 0:02:15]} c4 {[%emt 0:00:32]} 28. Nc5 {[%emt 0:01:41]} cxb3 {[%emt 0:00:37]} 29. cxb3 {[%emt 0:00:54]} Ra2 {[%emt 0:03:33]} 30. Rb1 {[%emt 0:02:39]} Kf6 {[%emt 0:02:01]} 31. b4 {[%emt 0:01:22]} Ke5 {[%emt 0:01:30]} 32. b5 {[%emt 0:01:55]} cxb5 {[%emt 0:01:38]} 33. Nxe6 {[%emt 0:00:12]} fxe6 {[%emt 0:02:58]} 34. Rxb5+ {[%emt 0:00:11]} Kd4 {[%emt 0:00:50]} 35. Rb6 {[%emt 0:01:00]} e5 {[%emt 0:01:32]} 36. Rd6+ {[%emt 0:01:11]} Ke3 {[%emt 0:00:19]} 37. h3 {[%emt 0:00:19]} Rd2 {[%emt 0:01:30]} 38. Rd5 {[%emt 0:02:20]} Rxd3 {[%emt 0:00:44]} 39. Rxe5 {[%emt 0:00:32]} Rd4 {[%emt 0:00:56]} 40. Re7 {[%emt 0:53:06]} Rxe4 {[%emt 0:00:14]} 41. Rxh7 {[%emt 0:00:00]} Kf4 {[%emt 0:01:41]} 42. Rh4+ {[%emt 0:00:00]} Kf5 {[%emt 0:00:15]} 43. Rxe4 {[%emt 0:00:00]} Kxe4 {[%emt 0:00:08]} 44. Kf2 {[%emt 0:00:00]} Kf4 {[%emt 0:00:34]} 45. g3+ {[%emt 0:00:00]} Kf5 {[%emt 0:01:05]} 46. Ke3 {[%emt 0:00:00]} Kg5 {[%emt 0:08:44]} 47. Ke4 {[%emt 0:00:00]} Kf6 {[%emt 0:02:27]} 48. h4 {[%emt 0:00:00]} Ke6 {[%emt 0:01:26]} 49. Kf4 {[%emt 0:00:00]} Kf6 {[%emt 0:00:48]} 50. Kg4 {[%emt 0:00:00]} Kf7 {[%emt 0:03:27]} 51. Kg5 {[%emt 0:00:00]} Kg7 {[%emt 0:00:28]} 52. g4 {[%emt 0:00:00]} Kh7 {[%emt 0:01:00]} 53. Kf6 {[%emt 0:00:00]} Kh6 {[%emt 0:01:02]} 54. g5+ {[%emt 0:00:00]} Kh7 {[%emt 0:01:21]} 55. Kf7 {[%emt 0:00:00]} Kh8 {[%emt 0:00:06]} 56. Kxg6 {[%emt 0:00:00]} Kg8 {[%emt 0:00:06]} 57. h5 {[%emt 0:00:00]} Kh8 {[%emt 0:00:34]} 58. Kf7 {[%emt 0:00:00]} Kh7 {[%emt 0:00:18]} 59. g6+ {[%emt 0:00:00]} Kh8 {[%emt 0:00:12]} 60. g7+ {[%emt 0:00:00]} Kh7 {[%emt 0:00:06]} 61. g8=Q+ {[%emt 0:00:00]} Kh6 {[%emt 0:00:12]} 62. Qg6# {[%emt 0:00:00]} 1-0

[Event "FIDE WCCC Girls-10 2024"]
[Site "Montesilvano"]
[Date "2024.11.18"]
[Round "3.8"]
[White "Wang, Yi Xuan"]
[Black "Li, Grace"]
[Result "1-0"]
[ECO "E14"]
[WhiteElo "1668"]
[BlackElo "1529"]
[PlyCount "93"]
[EventDate "2024.11.18"]
[EventType "swiss"]
[EventCountry "ITA"]
[TimeControl "5400+30"]

1. d4 {[%emt 0:00:07]} Nf6 {[%emt 0:00:06]} 2. c4 {[%emt 0:00:07]} e6 {[%emt 0:00:08]} 3. Nf3 {[%emt 0:00:13]} b6 {[%emt 0:00:18]} 4. a3 {[%emt 0:01:30]} Bb7 {[%emt 0:00:14]} 5. Nc3 {[%emt 0:01:30]} c5 {[%emt 0:02:59]} 6. d5 {[%emt 0:02:34]} exd5 {[%emt 0:01:36]} 7. cxd5 {[%emt 0:00:13]} d6 {[%emt 0:02:47]} 8. e4 {[%emt 0:01:23]} Nbd7 {[%emt 0:01:26]} 9. Bd3 {[%emt 0:02:36]} Be7 {[%emt 0:01:35]} 10. O-O {[%emt 0:02:41]} O-O {[%emt 0:00:31]} 11. h3 {[%emt 0:02:26]} a6 {[%emt 0:02:21]} 12. a4 {[%emt 0:02:51]} Ne5 {[%emt 0:02:39]} 13. Bb1 {[%emt 0:08:25]} Nfd7 {[%emt 0:06:33]} 14. Nxe5 {[%emt 0:08:02]} Nxe5 {[%emt 0:01:08]} 15. Qc2 {[%emt 0:02:46]} Bf6 {[%emt 0:03:48]} 16. f4 {[%emt 0:00:31]} Ng6 {[%emt 0:00:40]} 17. Re1 {[%emt 0:10:17]} Bd4+ {[%emt 0:01:35]} 18. Kh2 {[%emt 0:01:48]} Re8 {[%emt 0:04:40]} 19. g3 {[%emt 0:03:56]} Bxc3 {[%emt 0:01:12]} 20. Qxc3 {[%emt 0:01:40]} Qd7 {[%emt 0:01:19]} 21. b4 {[%emt 0:04:46]} cxb4 {[%emt 0:01:27]} 22. Qxb4 {[%emt 0:01:02]} Qc7 {[%emt 0:01:15]} 23. Ba3 {[%emt 0:01:34]} Rac8 {[%emt 0:01:32]} 24. Rc1 {[%emt 0:02:52]} Qd7 {[%emt 0:06:22]} 25. Bd3 {[%emt 0:03:39]} Rxc1 {[%emt 0:01:41]} 26. Rxc1 {[%emt 0:00:18]} Rc8 {[%emt 0:00:29]} 27. Rxc8+ {[%emt 0:00:50]} Bxc8 {[%emt 0:00:16]} 28. Bf1 {[%emt 0:02:51]} Qc7 {[%emt 0:00:50]} 29. Qxd6 {[%emt 0:01:22]} Qxd6 {[%emt 0:00:37]} 30. Bxd6 {[%emt 0:00:08]} Bd7 {[%emt 0:00:51]} 31. Bxa6 {[%emt 0:05:39]} Bxa4 {[%emt 0:00:27]} 32. Bc7 {[%emt 0:01:16]} b5 {[%emt 0:00:50]} 33. Ba5 {[%emt 0:25:07]} Kf8 {[%emt 0:01:15]} 34. d6 {[%emt 0:00:00]} Ke8 {[%emt 0:00:56]} 35. Bc8 {[%emt 0:00:00]} Nf8 {[%emt 0:00:18]} 36. e5 {[%emt 0:00:00]} h6 {[%emt 0:00:50]} 37. f5 {[%emt 0:00:00]} Bc2 {[%emt 0:01:39]} 38. g4 {[%emt 0:00:00]} Bb3 {[%emt 0:01:21]} 39. Kg3 {[%emt 0:00:00]} Nd7 {[%emt 0:00:22]} 40. Bxd7+ {[%emt 0:00:00]} Kxd7 {[%emt 0:00:16]} 41. Kf4 {[%emt 0:00:00]} Bd5 {[%emt 0:00:36]} 42. h4 {[%emt 0:00:00]} f6 {[%emt 0:01:12]} 43. Bb4 {[%emt 0:00:00]} Bc4 {[%emt 0:00:56]} 44. e6+ {[%emt 0:00:00]} Ke8 {[%emt 0:01:31]} 45. d7+ {[%emt 0:00:00]} Kd8 {[%emt 0:00:12]} 46. Ba5+ {[%emt 0:00:00]} Ke7 {[%emt 0:00:16]} 47. d8=Q# {[%emt 0:00:00]} 1-0

[Event "FIDE WCCC Girls-10 2024"]
[Site "Montesilvano"]
[Date "2024.11.18"]
[Round "3.9"]
[White "Malcheva, Niya"]
[Black "Cetin, Beren"]
[Result "0-1"]
[ECO "B56"]
[WhiteElo "1620"]
[BlackElo "1658"]
[PlyCount "96"]
[EventDate "2024.11.18"]
[EventType "swiss"]
[EventCountry "ITA"]
[TimeControl "5400+30"]

1. e4 {[%emt 0:00:05]} c5 {[%emt 0:00:15]} 2. Nf3 {[%emt 0:00:28]} Nc6 {[%emt 0:00:14]} 3. d4 {[%emt 0:00:06]} cxd4 {[%emt 0:00:06]} 4. Nxd4 {[%emt 0:00:11]} Nf6 {[%emt 0:00:07]} 5. Nc3 {[%emt 0:00:03]} d6 {[%emt 0:00:07]} 6. Nd5 {[%emt 0:02:38]} Nxd5 {[%emt 0:01:46]} 7. exd5 {[%emt 0:00:08]} Qa5+ {[%emt 0:02:05]} 8. Bd2 {[%emt 0:00:08]} Qxd5 {[%emt 0:02:12]} 9. Nb5 {[%emt 0:01:52]} Qe6+ {[%emt 0:05:19]} 10. Be2 {[%emt 0:00:11]} Qd7 {[%emt 0:00:16]} 11. c4 {[%emt 0:05:16]} a6 {[%emt 0:00:54]} 12. Nc3 {[%emt 0:00:17]} e6 {[%emt 0:01:50]} 13. Be3 {[%emt 0:03:43]} Be7 {[%emt 0:01:26]} 14. Na4 {[%emt 0:02:24]} Bd8 {[%emt 0:00:33]} 15. Nb6 {[%emt 0:00:55]} Bxb6 {[%emt 0:00:08]} 16. Bxb6 {[%emt 0:00:02]} Ne5 {[%emt 0:06:15]} 17. O-O {[%emt 0:03:42]} O-O {[%emt 0:02:50]} 18. f4 {[%emt 0:07:21]} Qc6 {[%emt 0:02:50]} 19. Qd4 {[%emt 0:00:15]} Nd7 {[%emt 0:04:52]} 20. Ba5 {[%emt 0:05:11]} e5 {[%emt 0:10:41]} 21. Qd2 {[%emt 0:01:19]} Nc5 {[%emt 0:05:34]} 22. Rad1 {[%emt 0:07:24]} b6 {[%emt 0:01:45]} 23. Bb4 {[%emt 0:00:43]} Bb7 {[%emt 0:00:26]} 24. Bg4 {[%emt 0:01:54]} f5 {[%emt 0:00:31]} 25. Bh3 {[%emt 0:00:36]} a5 {[%emt 0:05:58]} 26. Ba3 {[%emt 0:02:23]} Ne4 {[%emt 0:11:40]} 27. Qd5+ {[%emt 0:02:00]} Qxd5 {[%emt 0:00:08]} 28. cxd5 {[%emt 0:00:06]} Ba6 {[%emt 0:02:29]} 29. Rfe1 {[%emt 0:01:58]} b5 {[%emt 0:02:13]} 30. b3 {[%emt 0:01:08]} Nc3 {[%emt 0:01:38]} 31. Bxd6 {[%emt 0:02:00]} Nxd1 {[%emt 0:01:37]} 32. Bxf8 {[%emt 0:00:06]} Rxf8 {[%emt 0:00:05]} 33. Rxd1 {[%emt 0:00:04]} e4 {[%emt 0:01:18]} 34. Kf2 {[%emt 0:01:58]} g6 {[%emt 0:00:21]} 35. Ke3 {[%emt 0:00:51]} Rd8 {[%emt 0:00:17]} 36. g4 {[%emt 0:00:10]} Bc8 {[%emt 0:00:23]} 37. gxf5 {[%emt 0:00:17]} gxf5 {[%emt 0:01:42]} 38. d6 {[%emt 0:00:16]} Kf7 {[%emt 0:03:30]} 39. Rd5 {[%emt 0:00:42]} Kf6 {[%emt 0:00:21]} 40. Kd4 {[%emt 0:00:35]} Be6 {[%emt 0:00:27]} 41. Rxb5 {[%emt 0:03:37]} Rxd6+ {[%emt 0:00:17]} 42. Kc5 {[%emt 0:00:20]} Rd5+ {[%emt 0:00:08]} 43. Kc6 {[%emt 0:00:59]} Rd3 {[%emt 0:00:18]} 44. Bf1 {[%emt 0:00:26]} Bd7+ {[%emt 0:00:07]} 45. Kc5 {[%emt 0:01:25]} Bxb5 {[%emt 0:00:08]} 46. Kxb5 {[%emt 0:00:19]} Rd2 {[%emt 0:00:06]} 47. Kc4 {[%emt 0:00:16]} e3 {[%emt 0:00:08]} 48. Kc3 {[%emt 0:01:05]} e2 {[%emt 0:00:12]} 0-1

[Event "FIDE WCCC Girls-10 2024"]
[Site "Montesilvano"]
[Date "2024.11.18"]
[Round "3.10"]
[White "Zhumambayeva Aliya"]
[Black "Tselmuun, Ider"]
[Result "0-1"]
[ECO "B30"]
[WhiteElo "1607"]
[BlackElo "1846"]
[PlyCount "96"]
[EventDate "2024.11.18"]
[EventType "swiss"]
[EventCountry "ITA"]
[TimeControl "5400+30"]

1. e4 {[%emt 0:00:04]} c5 {[%emt 0:00:07]} 2. Nf3 {[%emt 0:00:05]} Nc6 {[%emt 0:00:09]} 3. Bb5 {[%emt 0:00:06]} Qc7 {[%emt 1:31:44]} 4. O-O {[%emt 0:00:15]} a6 {[%emt 0:00:00]} 5. Bxc6 {[%emt 0:00:08]} dxc6 {[%emt 0:00:00]} 6. d3 {[%emt 0:00:13]} e5 {[%emt 0:00:00]} 7. Be3 {[%emt 0:00:05]} f6 {[%emt 0:00:00]} 8. c3 {[%emt 0:00:11]} Be6 {[%emt 0:00:00]} 9. Nbd2 {[%emt 0:01:08]} g5 {[%emt 0:00:00]} 10. h3 {[%emt 0:00:42]} h5 {[%emt 0:00:00]} 11. Nh2 {[%emt 0:00:05]} O-O-O {[%emt 0:00:00]} 12. Qe2 {[%emt 0:00:37]} Qh7 {[%emt 0:00:00]} 13. Rfb1 {[%emt 0:02:26]} Qd7 {[%emt 0:00:00]} 14. Nb3 {[%emt 0:15:16]} Bxb3 {[%emt 0:00:00]} 15. axb3 {[%emt 0:01:47]} Qxd3 {[%emt 0:00:00]} 16. Qf3 {[%emt 0:00:18]} Qb5 {[%emt 0:00:00]} 17. b4 {[%emt 0:05:16]} cxb4 {[%emt 0:00:00]} 18. c4 {[%emt 0:00:11]} Qxc4 {[%emt 0:00:00]} 19. Bb6 {[%emt 0:00:17]} Rd6 {[%emt 0:00:00]} 20. Rd1 {[%emt 0:07:22]} Qe6 {[%emt 0:00:00]} 21. Rxd6 {[%emt 0:01:27]} Bxd6 {[%emt 0:00:00]} 22. Qd3 {[%emt 0:05:48]} Ne7 {[%emt 0:00:00]} 23. Rd1 {[%emt 0:02:36]} Bc7 {[%emt 0:00:00]} 24. Bxc7 {[%emt 0:03:14]} Kxc7 {[%emt 0:00:00]} 25. Nf1 {[%emt 0:01:51]} Nc8 {[%emt 0:00:00]} 26. Ne3 {[%emt 0:00:24]} Nd6 {[%emt 0:00:00]} 27. Nc2 {[%emt 0:00:57]} Rd8 {[%emt 0:00:00]} 28. Nxb4 {[%emt 0:02:45]} Qc4 {[%emt 0:00:00]} 29. Qxc4 {[%emt 0:01:08]} Nxc4 {[%emt 0:00:00]} 30. Rxd8 {[%emt 0:01:44]} Kxd8 {[%emt 0:00:00]} 31. Nd3 {[%emt 0:01:18]} a5 {[%emt 0:00:00]} 32. Kf1 {[%emt 0:01:42]} a4 {[%emt 0:00:00]} 33. Nc5 {[%emt 0:01:32]} b5 {[%emt 0:00:00]} 34. Ke2 {[%emt 0:01:04]} Nxb2 {[%emt 0:00:00]} 35. Kd2 {[%emt 0:00:06]} Nc4+ {[%emt 0:00:00]} 36. Kc3 {[%emt 0:00:23]} Ke7 {[%emt 0:00:00]} 37. Nd3 {[%emt 0:00:20]} Kd6 {[%emt 0:00:00]} 38. Nc1 {[%emt 0:00:51]} c5 {[%emt 0:00:00]} 39. Nd3 {[%emt 0:00:34]} Na5 {[%emt 0:00:00]} 40. Kc2 {[%emt 0:00:47]} b4 {[%emt 0:00:00]} 41. Nc1 {[%emt 0:00:38]} c4 {[%emt 0:00:00]} 42. Kb2 {[%emt 0:00:42]} a3+ {[%emt 0:00:00]} 43. Ka2 {[%emt 0:00:36]} Kc5 {[%emt 0:00:00]} 44. g3 {[%emt 0:00:08]} Kd4 {[%emt 0:00:00]} 45. f3 {[%emt 0:00:11]} Ke3 {[%emt 0:00:00]} 46. f4 {[%emt 0:00:18]} Kd2 {[%emt 0:00:00]} 47. Kb1 {[%emt 0:00:15]} gxf4 {[%emt 0:00:00]} 48. gxf4 {[%emt 0:00:06]} exf4 {[%emt 0:00:00]} 0-1

[Event "FIDE WCCC Girls-10 2024"]
[Site "Montesilvano"]
[Date "2024.11.18"]
[Round "3.11"]
[White "Bjerregaard Hagen, Frida"]
[Black "Nguyen Doan, Bao Anh Angelina"]
[Result "0-1"]
[ECO "D02"]
[WhiteElo "1815"]
[BlackElo "1628"]
[PlyCount "110"]
[EventDate "2024.11.18"]
[EventType "swiss"]
[EventCountry "ITA"]
[TimeControl "5400+30"]

1. d4 {[%emt 0:00:02]} Nf6 {[%emt 0:00:07]} 2. Nf3 {[%emt 0:00:09]} g6 {[%emt 0:00:11]} 3. c3 {[%emt 0:03:28]} Bg7 {[%emt 0:01:14]} 4. Bf4 {[%emt 0:00:54]} d5 {[%emt 0:01:26]} 5. e3 {[%emt 0:01:28]} O-O {[%emt 0:01:50]} 6. Be2 {[%emt 0:00:53]} c6 {[%emt 0:01:41]} 7. O-O {[%emt 0:01:46]} Qb6 {[%emt 0:01:09]} 8. Qb3 {[%emt 0:00:59]} Bf5 {[%emt 0:03:30]} 9. Nbd2 {[%emt 0:01:49]} Nbd7 {[%emt 0:01:57]} 10. Rac1 {[%emt 0:03:28]} Qxb3 {[%emt 0:08:51]} 11. Nxb3 {[%emt 0:00:58]} b5 {[%emt 0:08:18]} 12. Ne5 {[%emt 0:07:44]} Nxe5 {[%emt 0:05:07]} 13. Bxe5 {[%emt 0:01:17]} Nd7 {[%emt 0:04:54]} 14. Bxg7 {[%emt 0:03:09]} Kxg7 {[%emt 0:00:09]} 15. Rfd1 {[%emt 0:03:24]} a5 {[%emt 0:04:57]} 16. Nd2 {[%emt 0:04:09]} a4 {[%emt 0:04:46]} 17. a3 {[%emt 0:03:38]} g5 {[%emt 0:06:05]} 18. h3 {[%emt 0:03:15]} Nb6 {[%emt 0:02:35]} 19. Nf3 {[%emt 0:03:21]} f6 {[%emt 0:02:01]} 20. Bd3 {[%emt 0:01:31]} Bxd3 {[%emt 0:03:17]} 21. Rxd3 {[%emt 0:00:13]} Nc4 {[%emt 0:01:19]} 22. Rc2 {[%emt 0:53:55]} h5 {[%emt 0:01:56]} 23. Nd2 {[%emt 0:00:00]} f5 {[%emt 0:08:42]} 24. f4 {[%emt 0:00:00]} Kf6 {[%emt 0:05:44]} 25. Nxc4 {[%emt 0:00:00]} bxc4 {[%emt 0:01:22]} 26. Rdd2 {[%emt 0:00:00]} Rg8 {[%emt 0:06:00]} 27. Kh2 {[%emt 0:00:00]} Rab8 {[%emt 0:02:32]} 28. Re2 {[%emt 0:00:00]} e6 {[%emt 0:02:37]} 29. Rcd2 {[%emt 0:00:00]} Rb7 {[%emt 0:02:28]} 30. Rc2 {[%emt 0:00:00]} Rbg7 {[%emt 0:01:26]} 31. Rf2 {[%emt 0:00:00]} g4 {[%emt 0:00:35]} 32. Rfe2 {[%emt 0:00:00]} gxh3 {[%emt 0:01:23]} 33. Kxh3 {[%emt 0:00:00]} Rg3+ {[%emt 0:00:48]} 34. Kh2 {[%emt 0:00:00]} h4 {[%emt 0:01:04]} 35. Rcd2 {[%emt 0:00:00]} Kg6 {[%emt 0:01:09]} 36. Rc2 {[%emt 0:00:00]} Kh5 {[%emt 0:00:09]} 37. Rcd2 {[%emt 0:00:00]} Kg4 {[%emt 0:00:21]} 38. Rc2 {[%emt 0:00:00]} Rh8 {[%emt 0:00:44]} 39. Kh1 {[%emt 0:00:00]} h3 {[%emt 0:00:27]} 40. gxh3+ {[%emt 0:00:00]} Rgxh3+ {[%emt 0:00:43]} 41. Rh2 {[%emt 0:00:00]} Rxh2+ {[%emt 0:00:14]} 42. Rxh2 {[%emt 0:00:00]} Rxh2+ {[%emt 0:00:12]} 43. Kxh2 {[%emt 0:00:00]} Kf3 {[%emt 0:00:07]} 44. Kh3 {[%emt 0:00:00]} Kxe3 {[%emt 0:00:14]} 45. Kg3 {[%emt 0:00:00]} Ke4 {[%emt 0:00:24]} 46. Kg2 {[%emt 0:00:00]} Kxf4 {[%emt 0:00:06]} 47. Kf2 {[%emt 0:00:00]} Ke4 {[%emt 0:00:17]} 48. Ke2 {[%emt 0:00:00]} f4 {[%emt 0:00:26]} 49. Kf2 {[%emt 0:00:00]} f3 {[%emt 0:00:04]} 50. Kf1 {[%emt 0:00:00]} Ke3 {[%emt 0:00:05]} 51. Ke1 {[%emt 0:00:00]} f2+ {[%emt 0:00:08]} 52. Kf1 {[%emt 0:00:00]} Kf3 {[%emt 0:00:06]} 53. b3 {[%emt 0:00:00]} axb3 {[%emt 0:00:04]} 54. a4 {[%emt 0:00:00]} b2 {[%emt 0:00:05]} 55. a5 {[%emt 0:00:00]} b1=Q# {[%emt 0:00:07]} 0-1

[Event "FIDE WCCC Girls-10 2024"]
[Site "Montesilvano"]
[Date "2024.11.18"]
[Round "3.12"]
[White "Tran Hoang Bao An"]
[Black "Tykalova, Barbora"]
[Result "0-1"]
[ECO "D73"]
[WhiteElo "1714"]
[BlackElo "1596"]
[PlyCount "150"]
[EventDate "2024.11.18"]
[EventType "swiss"]
[EventCountry "ITA"]
[TimeControl "5400+30"]

1. d4 {[%emt 0:00:05]} d5 {[%emt 0:00:09]} 2. c4 {[%emt 0:00:24]} c6 {[%emt 0:00:23]} 3. Nf3 {[%emt 0:01:04]} Nf6 {[%emt 0:00:35]} 4. g3 {[%emt 0:01:11]} g6 {[%emt 0:00:27]} 5. Bg2 {[%emt 0:01:01]} Bg7 {[%emt 0:00:33]} 6. O-O {[%emt 0:01:42]} dxc4 {[%emt 0:01:30]} 7. Ne5 {[%emt 0:00:33]} Ng4 {[%emt 0:01:33]} 8. Nf3 {[%emt 0:06:52]} O-O {[%emt 0:02:43]} 9. h3 {[%emt 0:07:09]} Nf6 {[%emt 0:01:49]} 10. Na3 {[%emt 0:01:36]} b5 {[%emt 0:12:47]} 11. Re1 {[%emt 0:13:16]} Bf5 {[%emt 0:01:45]} 12. Nh4 {[%emt 0:08:15]} Bd7 {[%emt 0:08:41]} 13. Nxb5 {[%emt 0:01:19]} Nd5 {[%emt 0:06:02]} 14. Nc3 {[%emt 0:02:02]} Nxc3 {[%emt 0:04:20]} 15. bxc3 {[%emt 0:00:17]} Qa5 {[%emt 0:03:33]} 16. Qd2 {[%emt 0:02:46]} e5 {[%emt 0:10:27]} 17. e3 {[%emt 0:08:16]} Rd8 {[%emt 0:05:02]} 18. Bb2 {[%emt 0:01:30]} Na6 {[%emt 0:03:33]} 19. a4 {[%emt 0:08:01]} Rab8 {[%emt 0:03:13]} 20. Ba3 {[%emt 0:03:37]} c5 {[%emt 0:02:27]} 21. Nf3 {[%emt 0:08:49]} cxd4 {[%emt 0:02:36]} 22. exd4 {[%emt 0:03:07]} exd4 {[%emt 0:00:23]} 23. Nxd4 {[%emt 0:00:54]} Bxh3 {[%emt 0:03:18]} 24. Nc6 {[%emt 0:02:05]} Rxd2 {[%emt 0:00:38]} 25. Nxa5 {[%emt 0:00:06]} Bxg2 {[%emt 0:01:11]} 26. Kxg2 {[%emt 0:00:16]} Bxc3 {[%emt 0:00:29]} 27. Nxc4 {[%emt 0:06:12]} Rd4 {[%emt 0:01:56]} 28. Ne3 {[%emt 0:05:01]} Bxa1 {[%emt 0:01:40]} 29. Rxa1 {[%emt 0:00:08]} Rxa4 {[%emt 0:00:08]} 30. Nc2 {[%emt 0:00:23]} Rc8 {[%emt 0:01:43]} 31. Ra2 {[%emt 0:00:39]} Rxc2 {[%emt 0:01:33]} 32. Rxc2 {[%emt 0:00:08]} Rxa3 {[%emt 0:00:13]} 33. Rc4 {[%emt 0:00:09]} Kg7 {[%emt 0:01:23]} 34. g4 {[%emt 0:00:29]} Ra5 {[%emt 0:01:56]} 35. f4 {[%emt 0:00:51]} Nc5 {[%emt 0:00:24]} 36. Kg3 {[%emt 0:01:05]} Ne6 {[%emt 0:00:38]} 37. Rb4 {[%emt 0:00:21]} Ra3+ {[%emt 0:00:32]} 38. Kh4 {[%emt 0:00:07]} Rf3 {[%emt 0:00:13]} 39. Ra4 {[%emt 0:00:41]} Nxf4 {[%emt 0:00:13]} 40. g5 {[%emt 0:00:11]} Ne6 {[%emt 0:01:05]} 41. Rxa7 {[%emt 0:00:11]} Rf5 {[%emt 0:00:09]} 42. Kg3 {[%emt 0:00:21]} Nxg5 {[%emt 0:00:11]} 43. Ra4 {[%emt 0:00:10]} h5 {[%emt 0:00:57]} 44. Rb4 {[%emt 0:00:07]} Rf3+ {[%emt 0:00:19]} 45. Kg2 {[%emt 0:00:22]} Kf6 {[%emt 0:00:53]} 46. Rb6+ {[%emt 0:00:05]} Ke5 {[%emt 0:00:54]} 47. Rb5+ {[%emt 0:00:10]} Kf6 {[%emt 0:00:38]} 48. Rb6+ {[%emt 0:00:07]} Kg7 {[%emt 0:00:11]} 49. Rb5 {[%emt 0:00:05]} Rf5 {[%emt 0:00:07]} 50. Rb4 {[%emt 0:00:10]} Ne6 {[%emt 0:00:47]} 51. Kg3 {[%emt 0:00:39]} g5 {[%emt 0:00:15]} 52. Ra4 {[%emt 0:00:05]} g4 {[%emt 0:00:41]} 53. Kh2 {[%emt 0:00:16]} Rg5 {[%emt 0:00:36]} 54. Kg3 {[%emt 0:00:11]} h4+ {[%emt 0:00:20]} 55. Kg2 {[%emt 0:00:05]} Kh6 {[%emt 0:00:49]} 56. Ra6 {[%emt 0:00:17]} Kh5 {[%emt 0:00:40]} 57. Ra7 {[%emt 0:00:14]} h3+ {[%emt 0:00:23]} 58. Kg1 {[%emt 0:00:08]} f5 {[%emt 0:00:07]} 59. Rh7+ {[%emt 0:00:09]} Kg6 {[%emt 0:00:07]} 60. Ra7 {[%emt 0:00:05]} g3 {[%emt 0:00:10]} 61. Ra6 {[%emt 0:00:10]} Kf6 {[%emt 0:00:12]} 62. Rb6 {[%emt 0:01:21]} h2+ {[%emt 0:00:08]} 63. Kg2 {[%emt 0:00:04]} f4 {[%emt 0:00:06]} 64. Rb1 {[%emt 0:00:12]} f3+ {[%emt 0:00:16]} 65. Kh1 {[%emt 0:00:50]} f2 {[%emt 0:00:10]} 66. Kg2 {[%emt 0:00:10]} Nf4+ {[%emt 0:00:06]} 67. Kf3 {[%emt 0:00:22]} g2 {[%emt 0:00:28]} 68. Rb6+ {[%emt 0:00:08]} Ne6 {[%emt 0:00:08]} 69. Rb1 {[%emt 0:00:06]} f1=Q+ {[%emt 0:00:21]} 70. Ke3 {[%emt 0:00:06]} Re5+ {[%emt 0:00:09]} 71. Kd2 {[%emt 0:00:00]} Qe2+ {[%emt 0:00:00]} 72. Kc3 {[%emt 0:00:00]} Rc5+ {[%emt 0:00:00]} 73. Kb4 {[%emt 0:00:00]} Qc4+ {[%emt 0:00:15]} 74. Ka3 {[%emt 0:00:07]} Qc3+ {[%emt 0:00:11]} 75. Ka2 {[%emt 0:00:09]} Ra5# {[%emt 0:00:05]} 0-1

[Event "FIDE WCCC Girls-10 2024"]
[Site "Montesilvano"]
[Date "2024.11.18"]
[Round "3.13"]
[White "Mukhorina, Mariya Dm"]
[Black "Stoica, Melina-Theodora"]
[Result "1-0"]
[ECO "B13"]
[WhiteElo "1567"]
[BlackElo "1675"]
[PlyCount "117"]
[EventDate "2024.11.18"]
[EventType "swiss"]
[EventCountry "ITA"]
[TimeControl "5400+30"]

1. e4 {[%emt 0:00:06]} c6 {[%emt 0:00:07]} 2. d4 {[%emt 0:00:05]} d5 {[%emt 0:00:05]} 3. exd5 {[%emt 0:00:32]} cxd5 {[%emt 0:00:10]} 4. Bd3 {[%emt 0:00:15]} Nc6 {[%emt 0:00:07]} 5. c3 {[%emt 0:00:14]} Qc7 {[%emt 0:00:08]} 6. Na3 {[%emt 0:01:03]} a6 {[%emt 0:06:03]} 7. Nc2 {[%emt 0:02:07]} Nf6 {[%emt 0:03:22]} 8. h3 {[%emt 0:01:19]} e6 {[%emt 0:04:32]} 9. Nf3 {[%emt 0:03:12]} Be7 {[%emt 0:01:19]} 10. Bg5 {[%emt 0:03:39]} O-O {[%emt 0:02:22]} 11. O-O {[%emt 0:00:17]} Bd7 {[%emt 0:03:53]} 12. Qe2 {[%emt 0:03:51]} Nh5 {[%emt 0:11:25]} 13. Bxe7 {[%emt 0:08:20]} Nxe7 {[%emt 0:00:10]} 14. Qe5 {[%emt 0:01:48]} Qxe5 {[%emt 0:01:25]} 15. Nxe5 {[%emt 0:00:03]} Ba4 {[%emt 0:10:47]} 16. b3 {[%emt 0:10:42]} Bc6 {[%emt 0:01:20]} 17. g3 {[%emt 0:04:06]} Rac8 {[%emt 0:17:41]} 18. Rac1 {[%emt 0:05:17]} Ng6 {[%emt 0:16:25]} 19. Bxg6 {[%emt 0:03:51]} hxg6 {[%emt 0:04:09]} 20. a4 {[%emt 0:02:08]} b5 {[%emt 0:05:39]} 21. Nb4 {[%emt 0:00:37]} Bb7 {[%emt 0:00:36]} 22. Nd7 {[%emt 0:03:27]} Rfd8 {[%emt 0:00:42]} 23. Nc5 {[%emt 0:00:12]} Rc7 {[%emt 0:03:24]} 24. Nxb7 {[%emt 0:01:38]} Rxb7 {[%emt 0:00:36]} 25. Nxa6 {[%emt 0:00:15]} bxa4 {[%emt 0:00:12]} 26. bxa4 {[%emt 0:00:06]} Ra7 {[%emt 0:00:20]} 27. Nc5 {[%emt 0:00:03]} Nf6 {[%emt 0:00:10]} 28. Rb1 {[%emt 0:06:13]} Nd7 {[%emt 0:01:18]} 29. Rb7 {[%emt 0:02:38]} Rxb7 {[%emt 0:00:27]} 30. Nxb7 {[%emt 0:00:01]} Ra8 {[%emt 0:00:39]} 31. Ra1 {[%emt 0:37:55]} Ra7 32. Nd6 Ra6 33. Nb7 Ra7 34. Nc5 Nxc5 35. dxc5 Rc7 36. a5 Rxc5 37. a6 Rc8 38. a7 Ra8 39. f4 Kf8 40. Kf2 Ke7 41. Ke3 Kd8 42. Kd4 Kc7 43. Ke5 Kd7 44. Kd4 Kd6 45. g4 f6 46. Ra6+ Kc7 47. Rxe6 Rxa7 48. Re7+ Kb6 49. Rxa7 Kxa7 50. Kxd5 Kb7 51. Ke6 Kc6 52. Kf7 Kc5 53. Kxg7 Kc4 54. Kxg6 Kxc3 55. Kxf6 Kd4 56. g5 Ke4 57. g6 Kxf4 58. g7 Kf3 59. g8=Q {[%emt 0:00:00]} 1-0